[Event "*** Titled Tuesday Blitz"]
[Site "Chess.com"]
[Date "2019.04.02"]
[Round "9"]
[White "MrChessSponge"]
[Black "Firouzja2003"]
[Result "1/2-1/2"]
[WhiteElo "2295"]
[BlackElo "3049"]
[TimeControl "180+2"]
[EndTime "16:03:35 PDT"]
[Termination "Game drawn by agreement"]

1. d4 {[%clk 0:02:56.4]} 1... f5 {[%clk 0:02:58.6]} 2. g3 {[%clk 0:02:56.7]}
2... Nf6 {[%clk 0:02:59]} 3. Bg2 {[%clk 0:02:55.9]} 3... g6 {[%clk 0:03:00.3]}
4. Nd2 {[%clk 0:02:53.3]} 4... Bg7 {[%clk 0:03:02.2]} 5. c3 {[%clk 0:02:50.1]}
5... O-O {[%clk 0:03:02.5]} 6. Qb3+ {[%clk 0:02:48.8]} 6... Kh8 {[%clk
0:03:02.7]} 7. Bxb7 {[%clk 0:02:44.3]} 7... Bxb7 {[%clk 0:03:03.8]} 8. Qxb7
{[%clk 0:02:44]} 8... Nc6 {[%clk 0:03:05.7]} 9. Ngf3 {[%clk 0:02:33.3]} 9... a6
{[%clk 0:03:05.5]} 10. Nc4 {[%clk 0:02:25.1]} 10... Nd5 {[%clk 0:02:53.3]} 11.
O-O {[%clk 0:02:20.7]} 11... Nb6 {[%clk 0:02:50.1]} 12. Nfe5 {[%clk 0:02:16.6]}
12... Rf6 {[%clk 0:01:50.9]} 13. Nxb6 {[%clk 0:02:04.7]} 13... cxb6 {[%clk
0:01:47.2]} 14. Qxd7 {[%clk 0:02:01.3]} 14... Nxe5 {[%clk 0:01:39.9]} 15. Qxd8+
{[%clk 0:01:53.9]} 15... Rxd8 {[%clk 0:01:41.8]} 16. dxe5 {[%clk 0:01:54.6]}
16... Rc6 {[%clk 0:01:43.7]} 17. Be3 {[%clk 0:01:43.1]} 17... Bxe5 {[%clk
0:01:40.5]} 18. Rad1 {[%clk 0:01:39.3]} 18... Rxd1 {[%clk 0:01:40.2]} 19. Rxd1
{[%clk 0:01:39.1]} 19... Kg8 {[%clk 0:01:42.1]} 20. Rd7 {[%clk 0:01:33.6]} 20...
Bd6 {[%clk 0:01:35.2]} 21. Ra7 {[%clk 0:01:28]} 21... a5 {[%clk 0:01:34.9]} 22.
Rb7 {[%clk 0:01:23.9]} 22... Bc7 {[%clk 0:01:35.1]} 23. f4 {[%clk 0:01:21.1]}
23... Kf7 {[%clk 0:01:25.4]} 24. Bd4 {[%clk 0:01:12.2]} 24... Ke6 {[%clk
0:01:20.3]} 25. Kf2 {[%clk 0:01:09.6]} 25... Kd5 {[%clk 0:01:18.6]} 26. Kf3
{[%clk 0:01:05]} 26... a4 {[%clk 0:01:10]} 27. Ra7 {[%clk 0:01:04.8]} 27... b5
{[%clk 0:01:07.2]} 28. Rb7 {[%clk 0:01:05.6]} 28... Kc4 {[%clk 0:01:04.2]} 29.
e4 {[%clk 0:01:06.4]} 29... e6 {[%clk 0:00:53.4]} 30. Ke3 {[%clk 0:01:04]} 30...
h6 {[%clk 0:00:52.8]} 31. h3 {[%clk 0:01:05]} 31... g5 {[%clk 0:00:53]} 32. exf5
{[%clk 0:01:01.1]} 32... exf5 {[%clk 0:00:52.7]} 33. b3+ {[%clk 0:00:53.5]}
33... axb3 {[%clk 0:00:52]} 34. axb3+ {[%clk 0:00:55.4]} 34... Kxb3 {[%clk
0:00:53.9]} 35. Rxb5+ {[%clk 0:00:55.1]} 35... Kc4 {[%clk 0:00:55.5]} 36. Rxf5
{[%clk 0:00:55.5]} 36... gxf4+ {[%clk 0:00:56.7]} 37. gxf4 {[%clk 0:00:53.2]}
37... Re6+ {[%clk 0:00:58.6]} 1/2-1/2

[Event "*** Titled Tuesday Blitz"]
[Site "Chess.com"]
[Date "2019.04.02"]
[Round "9"]
[White "SavelijTartakover"]
[Black "Sajkochess"]
[Result "1-0"]
[WhiteElo "2621"]
[BlackElo "2338"]
[TimeControl "180+2"]
[EndTime "16:03:46 PDT"]
[Termination "SavelijTartakover won by resignation"]

1. d4 {[%clk 0:03:01.9]} 1... Nf6 {[%clk 0:03:00.4]} 2. Bg5 {[%clk 0:03:02]}
2... e6 {[%clk 0:03:00.4]} 3. e4 {[%clk 0:03:02.2]} 3... h6 {[%clk 0:03:01.3]}
4. Bxf6 {[%clk 0:03:02.9]} 4... Qxf6 {[%clk 0:03:03.2]} 5. c3 {[%clk 0:03:03.9]}
5... d6 {[%clk 0:03:00.9]} 6. Bc4 {[%clk 0:03:03]} 6... a6 {[%clk 0:02:58.5]} 7.
Ne2 {[%clk 0:03:00.1]} 7... b5 {[%clk 0:02:58.6]} 8. Bd3 {[%clk 0:03:01.1]} 8...
Bb7 {[%clk 0:02:59.6]} 9. O-O {[%clk 0:03:01.6]} 9... g6 {[%clk 0:02:59.9]} 10.
a4 {[%clk 0:03:01.8]} 10... bxa4 {[%clk 0:02:47.2]} 11. Qxa4+ {[%clk 0:02:57.9]}
11... Nd7 {[%clk 0:02:47.6]} 12. Nd2 {[%clk 0:02:55]} 12... Bg7 {[%clk
0:02:47.2]} 13. Nc4 {[%clk 0:02:52]} 13... Qd8 {[%clk 0:02:05.9]} 14. Na5 {[%clk
0:02:49.7]} 14... Ra7 {[%clk 0:01:48.2]} 15. Nxb7 {[%clk 0:02:44.5]} 15... Rxb7
{[%clk 0:01:48.2]} 16. b4 {[%clk 0:02:33.6]} 16... O-O {[%clk 0:01:43.4]} 17.
Qxa6 {[%clk 0:02:30.5]} 17... Rb6 {[%clk 0:01:42]} 18. Qa7 {[%clk 0:02:31.3]}
18... c5 {[%clk 0:01:34.5]} 19. b5 {[%clk 0:02:25.3]} 19... d5 {[%clk
0:01:23.4]} 20. exd5 {[%clk 0:02:13.1]} 20... exd5 {[%clk 0:01:23.4]} 21. Ra6
{[%clk 0:02:04.9]} 21... c4 {[%clk 0:01:16.9]} 22. Rxb6 {[%clk 0:02:05.2]} 22...
cxd3 {[%clk 0:01:01.1]} 23. Rd6 {[%clk 0:02:05.7]} 23... dxe2 {[%clk 0:01:00.8]}
24. Re1 {[%clk 0:02:06.4]} 24... Qc8 {[%clk 0:00:33]} 25. Rxd7 {[%clk
0:01:51.8]} 25... Qxc3 {[%clk 0:00:33]} 26. Qa1 {[%clk 0:01:52.3]} 26... Qxa1
{[%clk 0:00:31.9]} 27. Rxa1 {[%clk 0:01:51.3]} 27... Bxd4 {[%clk 0:00:30.6]} 28.
Re1 {[%clk 0:01:42]} 28... Re8 {[%clk 0:00:31]} 29. Rc7 {[%clk 0:01:32.6]} 29...
Bb6 {[%clk 0:00:14.2]} 30. Rc2 {[%clk 0:01:23.5]} 30... d4 {[%clk 0:00:05.1]}
31. Rcxe2 {[%clk 0:01:19.2]} 31... Rxe2 {[%clk 0:00:04.3]} 32. Rxe2 {[%clk
0:01:19.7]} 32... Kg7 {[%clk 0:00:03.4]} 33. Kf1 {[%clk 0:01:18.4]} 33... Kf6
{[%clk 0:00:04.4]} 34. Rc2 {[%clk 0:01:19.3]} 34... d3 {[%clk 0:00:04.8]} 35.
Rc6+ {[%clk 0:01:19.6]} 35... Ke5 {[%clk 0:00:05.9]} 1-0

[Event "*** Titled Tuesday Blitz"]
[Site "Chess.com"]
[Date "2019.04.02"]
[Round "9"]
[White "medalja"]
[Black "pedro_gines"]
[Result "1-0"]
[WhiteElo "2315"]
[BlackElo "2429"]
[TimeControl "180+2"]
[EndTime "16:03:52 PDT"]
[Termination "medalja won by checkmate"]

1. d4 {[%clk 0:03:01.9]} 1... d6 {[%clk 0:02:59.2]} 2. Nf3 {[%clk 0:03:00.6]}
2... Nf6 {[%clk 0:02:56.7]} 3. c4 {[%clk 0:03:01.5]} 3... g6 {[%clk 0:02:56.8]}
4. Nc3 {[%clk 0:03:02.3]} 4... Bg7 {[%clk 0:02:57.7]} 5. g3 {[%clk 0:03:03.7]}
5... O-O {[%clk 0:02:59.3]} 6. Bg2 {[%clk 0:03:05.1]} 6... Nc6 {[%clk
0:03:00.6]} 7. O-O {[%clk 0:03:06.1]} 7... e5 {[%clk 0:02:50.3]} 8. dxe5 {[%clk
0:03:04.2]} 8... dxe5 {[%clk 0:02:52]} 9. Bg5 {[%clk 0:02:58.1]} 9... Be6 {[%clk
0:02:51.6]} 10. Nd2 {[%clk 0:02:53.3]} 10... Qe8 {[%clk 0:02:23.3]} 11. Bxf6
{[%clk 0:02:43.9]} 11... Bxf6 {[%clk 0:02:25.2]} 12. Nd5 {[%clk 0:02:44.9]}
12... Bd8 {[%clk 0:02:25.6]} 13. Ne4 {[%clk 0:02:41.3]} 13... f6 {[%clk
0:02:11.7]} 14. Nc5 {[%clk 0:02:34.8]} 14... Bc8 {[%clk 0:02:12.4]} 15. e3
{[%clk 0:02:09.2]} 15... Nb8 {[%clk 0:01:50.7]} 16. Qb3 {[%clk 0:01:55.5]} 16...
c6 {[%clk 0:01:42.6]} 17. Nxb7 {[%clk 0:01:56.2]} 17... cxd5 {[%clk 0:01:34.8]}
18. Nxd8 {[%clk 0:01:56.9]} 18... e4 {[%clk 0:01:17.8]} 19. Nb7 {[%clk
0:01:55.4]} 19... Qc6 {[%clk 0:01:14.1]} 20. Na5 {[%clk 0:01:55.5]} 20... Qb6
{[%clk 0:01:15.1]} 21. cxd5 {[%clk 0:01:46]} 21... f5 {[%clk 0:01:14.6]} 22. d6+
{[%clk 0:01:05]} 22... Rf7 {[%clk 0:00:47.5]} 23. Rac1 {[%clk 0:01:04.1]} 23...
Ba6 {[%clk 0:00:45.2]} 24. Qd5 {[%clk 0:00:55.3]} 24... Bxf1 {[%clk 0:00:37.1]}
25. Bxf1 {[%clk 0:00:57.2]} 25... Kg7 {[%clk 0:00:33.1]} 26. Qxa8 {[%clk
0:00:56]} 26... Qxa5 {[%clk 0:00:34.1]} 27. Qxb8 {[%clk 0:00:57.1]} 27... Qd2
{[%clk 0:00:34.8]} 28. Rc7 {[%clk 0:00:56.2]} 28... f4 {[%clk 0:00:30.8]} 29.
Rxf7+ {[%clk 0:00:56.5]} 29... Kxf7 {[%clk 0:00:32.7]} 30. Qc7+ {[%clk
0:00:54.8]} 30... Kf6 {[%clk 0:00:34.1]} 31. Qe7+ {[%clk 0:00:55.5]} 31... Kf5
{[%clk 0:00:35.3]} 32. exf4 {[%clk 0:00:47.4]} 32... Kg4 {[%clk 0:00:37.2]} 33.
Qxe4 {[%clk 0:00:32]} 33... Qxd6 {[%clk 0:00:31.8]} 34. Be2+ {[%clk 0:00:33]}
34... Kh3 {[%clk 0:00:30.6]} 35. Qg2# {[%clk 0:00:33.8]} 1-0

[Event "*** Titled Tuesday Blitz"]
[Site "Chess.com"]
[Date "2019.04.02"]
[Round "9"]
[White "Grischuk"]
[Black "Gordima"]
[Result "1-0"]
[WhiteElo "3050"]
[BlackElo "2752"]
[TimeControl "180+2"]
[EndTime "16:04:00 PDT"]
[Termination "Grischuk won by resignation"]

1. e4 {[%clk 0:03:01.9]} 1... c5 {[%clk 0:03:00.9]} 2. Nf3 {[%clk 0:03:02.7]}
2... Nc6 {[%clk 0:03:02.5]} 3. Bb5 {[%clk 0:03:03.2]} 3... g6 {[%clk 0:03:02.9]}
4. Bxc6 {[%clk 0:03:03]} 4... bxc6 {[%clk 0:03:04.8]} 5. O-O {[%clk 0:03:02.3]}
5... Bg7 {[%clk 0:03:06.1]} 6. Re1 {[%clk 0:03:03.2]} 6... Nh6 {[%clk
0:03:06.5]} 7. h3 {[%clk 0:02:59.6]} 7... O-O {[%clk 0:03:06.4]} 8. c3 {[%clk
0:02:59.5]} 8... c4 {[%clk 0:03:07.1]} 9. b3 {[%clk 0:02:46.3]} 9... cxb3 {[%clk
0:03:00.6]} 10. axb3 {[%clk 0:02:48.2]} 10... d5 {[%clk 0:03:00.2]} 11. e5
{[%clk 0:02:47.7]} 11... c5 {[%clk 0:02:35.8]} 12. d4 {[%clk 0:02:48.5]} 12...
cxd4 {[%clk 0:02:30.5]} 13. cxd4 {[%clk 0:02:49.1]} 13... f6 {[%clk 0:02:21.1]}
14. Nc3 {[%clk 0:02:48.1]} 14... fxe5 {[%clk 0:02:07.6]} 15. Nxe5 {[%clk
0:02:50]} 15... Nf5 {[%clk 0:02:02.5]} 16. Ba3 {[%clk 0:02:34.6]} 16... Bb7
{[%clk 0:01:54.4]} 17. Bc5 {[%clk 0:02:32.2]} 17... a6 {[%clk 0:01:50]} 18. b4
{[%clk 0:02:29.4]} 18... Qc7 {[%clk 0:01:23.2]} 19. Qd3 {[%clk 0:02:24.6]} 19...
Nd6 {[%clk 0:01:16.5]} 20. Ra2 {[%clk 0:02:12.1]} 20... Rf5 {[%clk 0:01:07.4]}
21. Rae2 {[%clk 0:02:00.3]} 21... Raf8 {[%clk 0:01:06.7]} 22. f3 {[%clk
0:01:58.8]} 22... Rg5 {[%clk 0:00:51.4]} 23. h4 {[%clk 0:01:53.7]} 23... Rg3
{[%clk 0:00:46.4]} 24. Rf2 {[%clk 0:00:51]} 24... Nf5 {[%clk 0:00:45.3]} 25. Ne2
{[%clk 0:00:51.8]} 25... Bxe5 {[%clk 0:00:44.3]} 26. dxe5 {[%clk 0:00:53.7]}
26... Qxe5 {[%clk 0:00:42.7]} 27. Qd2 {[%clk 0:00:55.4]} 27... Nxh4 {[%clk
0:00:37.9]} 28. Nxg3 {[%clk 0:00:31.6]} 28... Qxg3 {[%clk 0:00:39.8]} 29. Rxe7
{[%clk 0:00:33]} 29... Rf7 {[%clk 0:00:15.7]} 30. Re8+ {[%clk 0:00:31]} 30...
Kg7 {[%clk 0:00:17]} 31. Bd4+ {[%clk 0:00:32.5]} 31... Rf6 {[%clk 0:00:15.6]}
32. Re7+ {[%clk 0:00:33.5]} 1-0

[Event "*** Titled Tuesday Blitz"]
[Site "Chess.com"]
[Date "2019.04.02"]
[Round "9"]
[White "nutibara"]
[Black "Kawhi_Leonard2"]
[Result "0-1"]
[WhiteElo "2382"]
[BlackElo "2213"]
[TimeControl "180+2"]
[EndTime "16:04:03 PDT"]
[Termination "Kawhi_Leonard2 won on time"]

1. e4 {[%clk 0:03:01.9]} 1... c5 {[%clk 0:03:00.2]} 2. Nf3 {[%clk 0:03:02.5]}
2... d6 {[%clk 0:03:01.5]} 3. d4 {[%clk 0:03:04.1]} 3... cxd4 {[%clk 0:03:02.8]}
4. Nxd4 {[%clk 0:03:06]} 4... Nf6 {[%clk 0:03:03.9]} 5. Nc3 {[%clk 0:03:07.5]}
5... g6 {[%clk 0:03:05.2]} 6. Be3 {[%clk 0:03:08]} 6... Bg7 {[%clk 0:03:06.3]}
7. f3 {[%clk 0:03:09.6]} 7... O-O {[%clk 0:03:06.9]} 8. Qd2 {[%clk 0:03:11.1]}
8... Nc6 {[%clk 0:03:08.3]} 9. O-O-O {[%clk 0:03:12.5]} 9... d5 {[%clk
0:03:09.8]} 10. exd5 {[%clk 0:03:13.5]} 10... Nxd5 {[%clk 0:03:10.2]} 11. Nxc6
{[%clk 0:03:14.8]} 11... bxc6 {[%clk 0:03:11]} 12. Nxd5 {[%clk 0:03:16.4]} 12...
cxd5 {[%clk 0:03:11.7]} 13. Qxd5 {[%clk 0:03:18.3]} 13... Qc7 {[%clk 0:03:12.2]}
14. Qc5 {[%clk 0:03:19.3]} 14... Qb7 {[%clk 0:03:13.2]} 15. b3 {[%clk
0:03:20.4]} 15... Bf5 {[%clk 0:02:54.9]} 16. Bd3 {[%clk 0:03:21.3]} 16... Rfc8
{[%clk 0:02:49.6]} 17. Qa5 {[%clk 0:03:21.6]} 17... Rc3 {[%clk 0:02:47.2]} 18.
Bxf5 {[%clk 0:03:21.3]} 18... Rxe3 {[%clk 0:02:47.6]} 19. Be4 {[%clk 0:03:21.6]}
19... Rxe4 {[%clk 0:02:21.3]} 20. fxe4 {[%clk 0:03:07.3]} 20... Qxe4 {[%clk
0:02:21.9]} 21. Qd5 {[%clk 0:02:12.7]} 21... Qf4+ {[%clk 0:02:12.8]} 22. Kb1
{[%clk 0:02:12.7]} 22... Rb8 {[%clk 0:02:06]} 23. Rhf1 {[%clk 0:01:46.9]} 23...
Qxh2 {[%clk 0:02:04.8]} 24. Qxf7+ {[%clk 0:01:34.9]} 24... Kh8 {[%clk 0:02:06]}
25. Qxe7 {[%clk 0:01:35.8]} 25... h5 {[%clk 0:01:50.6]} 26. Rd7 {[%clk
0:01:14.5]} 26... Rg8 {[%clk 0:01:49.7]} 27. Qe4 {[%clk 0:01:11.6]} 27... Qg3
{[%clk 0:01:48]} 28. Rd3 {[%clk 0:01:04]} 28... Qg5 {[%clk 0:01:48.6]} 29. a4
{[%clk 0:00:54]} 29... a5 {[%clk 0:01:49.4]} 30. Ka2 {[%clk 0:00:54.4]} 30...
Qc5 {[%clk 0:01:45.9]} 31. Rg3 {[%clk 0:00:27.7]} 31... Rc8 {[%clk 0:01:30.6]}
32. c3 {[%clk 0:00:08.4]} 32... Rc6 {[%clk 0:01:16.3]} 33. c4 {[%clk 0:00:03.3]}
33... Rd6 {[%clk 0:01:04.6]} 34. Rc1 {[%clk 0:00:03.3]} 34... Rd2+ {[%clk
0:01:02.4]} 35. Rc2 {[%clk 0:00:04.5]} 35... Rxc2+ {[%clk 0:01:01.8]} 36. Qxc2
{[%clk 0:00:06.4]} 36... Qe5 {[%clk 0:01:02.7]} 37. Qb1 {[%clk 0:00:05.2]} 37...
Qxg3 {[%clk 0:01:03.4]} 38. Qc2 {[%clk 0:00:02.6]} 38... Qe5 {[%clk 0:01:00.3]}
0-1

[Event "*** Titled Tuesday Blitz"]
[Site "Chess.com"]
[Date "2019.04.02"]
[Round "9"]
[White "Gabrielian_Artur"]
[Black "Off-War"]
[Result "1-0"]
[WhiteElo "2752"]
[BlackElo "2630"]
[TimeControl "180+2"]
[EndTime "16:04:18 PDT"]
[Termination "Gabrielian_Artur won on time"]

1. e4 {[%clk 0:03:01.9]} 1... e5 {[%clk 0:03:00]} 2. Nf3 {[%clk 0:03:02.4]} 2...
Nc6 {[%clk 0:03:01.5]} 3. Bc4 {[%clk 0:03:03.5]} 3... Bc5 {[%clk 0:03:01.8]} 4.
d3 {[%clk 0:03:04.3]} 4... Nf6 {[%clk 0:03:02.7]} 5. Bg5 {[%clk 0:03:04.8]} 5...
O-O {[%clk 0:03:02]} 6. a4 {[%clk 0:03:02.8]} 6... h6 {[%clk 0:03:02.7]} 7. Bh4
{[%clk 0:03:03.5]} 7... Be7 {[%clk 0:03:03.1]} 8. Bg3 {[%clk 0:03:03.9]} 8... d6
{[%clk 0:03:03.7]} 9. h3 {[%clk 0:03:02.9]} 9... Be6 {[%clk 0:03:03.2]} 10. Nbd2
{[%clk 0:03:02.8]} 10... Qd7 {[%clk 0:03:01.8]} 11. c3 {[%clk 0:03:00.8]} 11...
Rfe8 {[%clk 0:03:00.2]} 12. O-O {[%clk 0:03:00.1]} 12... Bf8 {[%clk 0:02:56.2]}
13. Re1 {[%clk 0:03:00]} 13... g6 {[%clk 0:02:52.7]} 14. a5 {[%clk 0:02:54.9]}
14... a6 {[%clk 0:02:53.2]} 15. Qb3 {[%clk 0:02:51.9]} 15... Rab8 {[%clk
0:02:53.9]} 16. Nf1 {[%clk 0:02:43.4]} 16... Bg7 {[%clk 0:02:46.7]} 17. Ne3
{[%clk 0:02:44]} 17... Nh5 {[%clk 0:02:48.1]} 18. Bh2 {[%clk 0:02:43.9]} 18...
Kh7 {[%clk 0:02:47.3]} 19. Bxe6 {[%clk 0:02:41.4]} 19... Rxe6 {[%clk 0:02:45.8]}
20. Nd5 {[%clk 0:02:42.2]} 20... Ree8 {[%clk 0:02:33.7]} 21. Qc4 {[%clk
0:02:40.7]} 21... f5 {[%clk 0:02:33]} 22. b4 {[%clk 0:02:23.3]} 22... f4 {[%clk
0:01:48.2]} 23. b5 {[%clk 0:02:20]} 23... axb5 {[%clk 0:01:50.1]} 24. Qxb5
{[%clk 0:02:21.2]} 24... g5 {[%clk 0:01:38.8]} 25. Reb1 {[%clk 0:02:15.9]} 25...
g4 {[%clk 0:01:25.5]} 26. hxg4 {[%clk 0:02:15.6]} 26... Qxg4 {[%clk 0:01:27.4]}
27. a6 {[%clk 0:02:06.1]} 27... Rg8 {[%clk 0:01:22.2]} 28. Kf1 {[%clk
0:02:00.1]} 28... Na7 {[%clk 0:00:57.8]} 29. Qc4 {[%clk 0:01:55.7]} 29... c6
{[%clk 0:00:56.5]} 30. Ne7 {[%clk 0:01:49.7]} 30... b5 {[%clk 0:00:47.1]} 31.
Qa2 {[%clk 0:01:33]} 31... Rbf8 {[%clk 0:00:38.4]} 32. Nxg8 {[%clk 0:01:31.8]}
32... Rxg8 {[%clk 0:00:27]} 33. Qf7 {[%clk 0:01:30]} 33... Ra8 {[%clk
0:00:16.8]} 34. Qb7 {[%clk 0:01:18.5]} 34... Qc8 {[%clk 0:00:18.3]} 35. Ke2
{[%clk 0:01:14]} 35... Nf6 {[%clk 0:00:17.7]} 36. Qxc8 {[%clk 0:01:13.3]} 36...
Nxc8 {[%clk 0:00:16.2]} 37. g3 {[%clk 0:01:14.5]} 37... fxg3 {[%clk 0:00:15.1]}
38. Bxg3 {[%clk 0:01:15.3]} 38... Nd7 {[%clk 0:00:17]} 39. d4 {[%clk 0:01:06.9]}
1-0

[Event "*** Titled Tuesday Blitz"]
[Site "Chess.com"]
[Date "2019.04.02"]
[Round "9"]
[White "LaughingTiger"]
[Black "IIIlllII1llIl"]
[Result "0-1"]
[WhiteElo "2187"]
[BlackElo "2769"]
[TimeControl "180+2"]
[EndTime "16:04:19 PDT"]
[Termination "IIIlllII1llIl won by resignation"]

1. e4 {[%clk 0:03:01.9]} 1... c5 {[%clk 0:03:00.8]} 2. Nf3 {[%clk 0:02:59.8]}
2... d6 {[%clk 0:03:01.7]} 3. d4 {[%clk 0:02:54.1]} 3... cxd4 {[%clk 0:03:03.6]}
4. Nxd4 {[%clk 0:02:55.4]} 4... Nf6 {[%clk 0:03:04.4]} 5. Nc3 {[%clk 0:02:56.4]}
5... a6 {[%clk 0:03:05.5]} 6. Bc4 {[%clk 0:02:54.6]} 6... e6 {[%clk 0:03:05.6]}
7. Bb3 {[%clk 0:02:54.4]} 7... Nbd7 {[%clk 0:03:06]} 8. O-O {[%clk 0:02:54.9]}
8... Nc5 {[%clk 0:03:06.7]} 9. f4 {[%clk 0:02:56]} 9... Nfxe4 {[%clk 0:02:55.2]}
10. Nxe4 {[%clk 0:02:55.6]} 10... Nxe4 {[%clk 0:02:57.1]} 11. f5 {[%clk
0:02:57]} 11... e5 {[%clk 0:02:54.5]} 12. Qh5 {[%clk 0:02:47.1]} 12... d5 {[%clk
0:02:54.5]} 13. Re1 {[%clk 0:02:44.3]} 13... Bc5 {[%clk 0:02:38.1]} 14. Rxe4
{[%clk 0:02:44.4]} 14... Bxd4+ {[%clk 0:02:24.9]} 15. Rxd4 {[%clk 0:02:04.8]}
15... Qb6 {[%clk 0:02:24.7]} 16. Be3 {[%clk 0:02:03.2]} 16... exd4 {[%clk
0:02:25.2]} 17. Bg5 {[%clk 0:01:59.8]} 17... d3+ {[%clk 0:01:41.9]} 18. Kh1
{[%clk 0:01:49.6]} 18... Bxf5 {[%clk 0:01:18.9]} 19. Re1+ {[%clk 0:01:23.6]}
19... Be6 {[%clk 0:01:18.5]} 20. Ba4+ {[%clk 0:01:02.4]} 20... Kf8 {[%clk
0:01:18.2]} 21. cxd3 {[%clk 0:01:00.8]} 21... Qb4 {[%clk 0:00:45.6]} 22. Rxe6
{[%clk 0:00:32.2]} 22... fxe6 {[%clk 0:00:35.3]} 23. Qf3+ {[%clk 0:00:28.3]}
23... Kg8 {[%clk 0:00:34.7]} 24. Qe2 {[%clk 0:00:27.7]} 24... Qd6 {[%clk
0:00:32.9]} 25. h3 {[%clk 0:00:20.8]} 25... Rf8 {[%clk 0:00:29.2]} 26. Bb3
{[%clk 0:00:17.3]} 26... h6 {[%clk 0:00:23]} 27. Bd2 {[%clk 0:00:17.3]} 27...
Kh7 {[%clk 0:00:23.8]} 28. d4 {[%clk 0:00:18.6]} 28... Rf6 {[%clk 0:00:19.5]}
29. Bc2+ {[%clk 0:00:17.7]} 29... g6 {[%clk 0:00:20.6]} 30. Qe3 {[%clk
0:00:16.8]} 30... Rf1+ {[%clk 0:00:20.8]} 31. Qg1 {[%clk 0:00:17.1]} 31... Rxg1+
{[%clk 0:00:21.9]} 32. Kxg1 {[%clk 0:00:19]} 32... Rf8 {[%clk 0:00:20.8]} 33. h4
{[%clk 0:00:20.3]} 33... Qg3 {[%clk 0:00:20.4]} 34. h5 {[%clk 0:00:21.4]} 34...
Qf2+ {[%clk 0:00:20.4]} 35. Kh2 {[%clk 0:00:21.9]} 35... Qxd2 {[%clk 0:00:21.6]}
36. Bxg6+ {[%clk 0:00:23.4]} 36... Kg7 {[%clk 0:00:22.7]} 37. b3 {[%clk
0:00:24.4]} 37... Rf2 {[%clk 0:00:23.1]} 38. a4 {[%clk 0:00:26.3]} 38... Rxg2+
{[%clk 0:00:24.1]} 39. Kh3 {[%clk 0:00:27.6]} 39... Qg5 {[%clk 0:00:24]} 0-1

[Event "*** Titled Tuesday Blitz"]
[Site "Chess.com"]
[Date "2019.04.02"]
[Round "9"]
[White "mikhaillushenkov"]
[Black "penguingm1"]
[Result "0-1"]
[WhiteElo "2684"]
[BlackElo "2953"]
[TimeControl "180+2"]
[EndTime "16:04:20 PDT"]
[Termination "penguingm1 won by resignation"]

1. Nf3 {[%clk 0:03:01.9]} 1... d5 {[%clk 0:03:00.8]} 2. d4 {[%clk 0:03:02.5]}
2... Nf6 {[%clk 0:03:01.6]} 3. c4 {[%clk 0:03:02.7]} 3... e6 {[%clk 0:03:02.8]}
4. Nc3 {[%clk 0:03:02.6]} 4... Be7 {[%clk 0:03:03.8]} 5. Qc2 {[%clk 0:03:02.6]}
5... O-O {[%clk 0:02:56.6]} 6. e4 {[%clk 0:03:03.2]} 6... dxe4 {[%clk
0:02:53.5]} 7. Nxe4 {[%clk 0:03:05.1]} 7... Nxe4 {[%clk 0:02:51.5]} 8. Qxe4
{[%clk 0:03:07]} 8... Nd7 {[%clk 0:02:49.4]} 9. Bd3 {[%clk 0:03:07.8]} 9... Bb4+
{[%clk 0:02:19.4]} 10. Kf1 {[%clk 0:03:06.1]} 10... Nf6 {[%clk 0:02:13.3]} 11.
Qh4 {[%clk 0:03:06.2]} 11... Re8 {[%clk 0:01:48.9]} 12. Ne5 {[%clk 0:02:36.3]}
12... h6 {[%clk 0:01:24.2]} 13. c5 {[%clk 0:02:21.6]} 13... c6 {[%clk
0:01:03.4]} 14. Bxh6 {[%clk 0:02:10.2]} 14... gxh6 {[%clk 0:00:50.6]} 15. Qxh6
{[%clk 0:02:12.1]} 15... Ba5 {[%clk 0:00:46.6]} 16. h4 {[%clk 0:01:29.4]} 16...
Bc7 {[%clk 0:00:14.7]} 17. Rh3 {[%clk 0:01:10]} 17... Bxe5 {[%clk 0:00:13.2]}
18. dxe5 {[%clk 0:01:11.9]} 18... Ng4 {[%clk 0:00:14.7]} 19. Qh7+ {[%clk
0:00:40.4]} 19... Kf8 {[%clk 0:00:13.7]} 20. Rg3 {[%clk 0:00:32.6]} 20... Qd4
{[%clk 0:00:09.2]} 21. Rxg4 {[%clk 0:00:14.2]} 21... Qxg4 {[%clk 0:00:09.8]} 22.
Be2 {[%clk 0:00:11]} 22... Qg7 {[%clk 0:00:06.2]} 23. Qh5 {[%clk 0:00:12.2]}
23... Rd8 {[%clk 0:00:07.3]} 24. g4 {[%clk 0:00:10.3]} 24... Rd5 {[%clk
0:00:08.2]} 25. f4 {[%clk 0:00:11.5]} 25... Rd4 {[%clk 0:00:09.9]} 26. Kg2
{[%clk 0:00:05.8]} 26... Rxf4 {[%clk 0:00:10.8]} 27. Rd1 {[%clk 0:00:07]} 27...
Ke7 {[%clk 0:00:09.7]} 28. Bf3 {[%clk 0:00:05.5]} 28... Bd7 {[%clk 0:00:10.4]}
29. Rd6 {[%clk 0:00:06.4]} 29... Rh8 {[%clk 0:00:10.8]} 30. Qg5+ {[%clk
0:00:05.8]} 30... Qxg5 {[%clk 0:00:12.1]} 31. hxg5 {[%clk 0:00:07.7]} 31... Rc4
{[%clk 0:00:12.5]} 0-1